Workbook

Sheet чай+кофе
C1: Преимущества и условия отгрузки
C2: Чай фасуется по 0,25 кг, 0,5 кг или 1кг и мешками от 10 до 35 кг.
C3: Акционные позиции отмечены желтым цветом.
I5: Итого со скидкой
G6: Кол-во | H6: =SUMIF(D9:D732,"за 1 кг",G9:G732) -> 111.25 | I6: =IF(H7<20000,0,IF((H7>=20000)*AND(H7<40000),0.05,IF((H7>=40000)*AND(H7<80000),0.1,IF((H7>=80000)*AND(H7<150000),0.15,0.2)))) -> 0.2
B7: Артикул | C7: Наименование | D7: Вес | E7: Закуп от 3000р | F7: цена со скидкой | H7: =SUM(H8:H1048576) -> 197613 | I7: =SUM(K9:K732) -> 
B8: kata | C8: Черный чай AROMA
A9: 50.89999998 | B9: 00004 | C9: Эрл грей крупнолистовой (Купаж черного чая, с ароматом "Бергамот") | D9: за 1 кг | E9: 1142 | F9: 1142 | G9: 0.25 | H9: =G9*F9 -> 285.5 | K9: =IF(I9=#REF!,H9,H9*(1-$I$6)) -> 
A10: 50.89999998 | B10: 1111120 | C10: Граф Грей (Купаж черного чая, мальва, с ароматом "Бергамот и лимон") | D10: за 1 кг | E10: 1176 | F10: 1176 | G10: 0.25 | H10: 294 | I10: NEW! | K10: =IF(I10=#REF!,H10,H10*(1-$I$6)) -> 
A11: 50.89999998 | B11: 1111123 | C11: Белый бергамот (Купаж черного чая, Бай Му Дань, с ароматом "Бергамот") | D11: за 1 кг | E11: 1885 | F11: 1885 | G11: 0.25 | H11: 471.25 | I11: NEW! | K11: =IF(I11=#REF!,H11,H11*(1-$I$6)) -> 
A12: 50.89999998 | B12: 00010 | C12: Граф Орлов (Купаж черного чая, мальва, сафлор, клубника ягода, цукаты, персик, с ароматом "Земляника") | D12: за 1 кг | E12: 1234 | F12: 1234 | G12: 0.25 | H12: 308.5 | K12: =IF(I12=#REF!,H12,H12*(1-$I$6)) -> 
A13: 50.89999998 | B13: 1111117 | C13: Граф Гренадин (Купаж черного чая, Сенча, ежевика ягода, черемуха ягода, роза лепестки, с ароматом "Гранат, черника, смородина") | D13: за 1 кг | E13: 1364 | F13: 1364 | G13: 0.25 | H13: 341 | I13: NEW! | K13: =IF(I13=#REF!,H13,H13*(1-$I$6)) -> 
A14: 50.89999998 | B14: 1111118 | C14: Ванильная клюква (Купаж черного чая, клюква, роза лепестки, карамель, с ароматом "Ваниль и сливки") | D14: за 1 кг | E14: 1129 | F14: 904 | G14: 0.25 | H14: 226 | I14: Акция! | K14: =IF(I14=#REF!,H14,H14*(1-$I$6)) -> 
A15: 50.89999998 | B15: 1111119 | C15: Смородина с мятой (Купаж черного чая, брусника лист, мята лист, черная смородина ягода, с ароматом "Смородина и мята") | D15: за 1 кг | E15: 1334 | F15: 1334 | G15: 0.25 | H15: 333.5 | I15: NEW! | K15: =IF(I15=#REF!,H15,H15*(1-$I$6)) -> 
A16: 50.89999998 | B16: 1111121 | C16: Черничный йогурт (Купаж черного чая, смородина лист, ежевика лист,мальва, с ароматом "Черника и пломбир") | D16: за 1 кг | E16: 1364 | F16: 1364 | G16: 0.25 | H16: 341 | I16: NEW! | K16: =IF(I16=#REF!,H16,H16*(1-$I$6)) -> 
A17: 50.89999998 | B17: 1111674 | C17: Золотая осень (Ассам ОРА,цейлон ОР, апельсин,яблоко,с ароматом "Клубника и карамель") | D17: за 1 кг | E17: 1361 | F17: 1361 | G17: 0.25 | H17: 340.25 | K17: =IF(I17=#REF!,H17,H17*(1-$I$6)) -> 
A18: 50.89999998 | B18: 1111675 | C18: Снежная королева (Купаж черного чая, мята, мальва, хризантема, цукаты, малина ягода, с ароматом "Лимон") | D18: за 1 кг | E18: 1230 | F18: 1230 | G18: 0.25 | H18: 307.5 | K18: =IF(I18=#REF!,H18,H18*(1-$I$6)) -> 
A19: 50.89999998 | B19: 1111709 | C19: Черный чай "Темный капучино" (Купаж черного чая, карамель,шоколад, с ароматом " Капучино") | D19: за 1 кг | E19: 1295 | F19: 1295 | G19: 0.25 | H19: 323.75 | I19: NEW! | K19: =IF(I19=#REF!,H19,H19*(1-$I$6)) -> 
A20: 50.89999998 | B20: 1111705 | C20: Черный чай "Ореховая долина" (Купаж черного чая, сенча, кедровый орех, смородина лист, с ароматом "Фисташка") | D20: за 1 кг | E20: 1333 | F20: 1333 | G20: 0.25 | H20: 333.25 | I20: NEW! | K20: =IF(I20=#REF!,H20,H20*(1-$I$6)) -> 
A21: 50.89999998 | B21: 00027 | C21: Изысканный бергамот (Купаж черного чая, мальва, шиповник кожура, черноплодная рябина ягода, с ароматом "Бергамот") | D21: за 1 кг | E21: 1378 | F21: 1378 | G21: 0.25 | H21: 344.5 | K21: =IF(I21=#REF!,H21,H21*(1-$I$6)) -> 
A22: 50.89999998 | B22: 00025 | C22: Дикая вишня (Купаж черного чая, роза лепестки, вишня ягода, вишня лист, гранат цветки, с ароматом "Вишня") | D22: за 1 кг | E22: 1222 | F22: 1222 | G22: 0.25 | H22: 305.5 | K22: =IF(I22=#REF!,H22,H22*(1-$I$6)) -> 
A23: 50.89999998 | B23: 00026 | C23: Цитрус блэнд (Купаж черного чая, Лемонграсс, лимон корка, апельсин корка, календула, сафлор, с ароматом "Мандарин") | D23: за 1 кг | E23: 1364 | F23: 1364 | G23: 0.25 | H23: 341 | K23: =IF(I23=#REF!,H23,H23*(1-$I$6)) -> 
A24: 50.89999998 | B24: 00011 | C24: Пряный цитрус (Купаж черного чая, душистый перец, кориандр, кардамон, яблоко, корица, апельсин корка, с ароматом "Апельсин") | D24: за 1 кг | E24: 1351 | F24: 1351 | G24: 0.25 | H24: 337.75 | K24: =IF(I24=#REF!,H24,H24*(1-$I$6)) -> 
A25: 50.89999998 | B25: 00023 | C25: Ранетка (Купаж черного чая, зеленый чай "Сенча", Лемонграсс, вишня ягода, яблоко, вишня лист, с ароматом "Яблоко") | D25: за 1 кг | E25: 1351 | F25: 1216 | G25: 0.25 | H25: 304 | I25: Акция! | K25: =IF(I25=#REF!,H25,H25*(1-$I$6)) -> 
A26: 50.89999998 | B26: 1110716 | C26: Вишня в шоколаде кат.В (Вьетнамский черный чай, вишня лист, вишня ягода, шоколад, кофе зерна, сафлор, с ароматом "Шоколад и Вишня") | D26: за 1 кг | E26: 1153 | F26: 1153 | G26: 0.25 | H26: 288.25 | K26: =IF(I26=#REF!,H26,H26*(1-$I$6)) -> 
A27: 50.89999998 | B27: 00024 | C27: Вишня в шоколаде (Купаж черного чая, вишня лист, вишня ягода, шоколад, кофе зерна, сафлор, с ароматом "Шоколад и Вишня") | D27: за 1 кг | E27: 1217 | F27: 1096 | G27: 0.25 | H27: 274 | I27: Акция! | K27: =IF(I27=#REF!,H27,H27*(1-$I$6)) -> 
A28: 50.89999998 | B28: 00028 | C28: Клубника со сливками (Купаж черного чая, клубника кусочки, смородина лист, сафлор, с ароматом "Клубника и Молоко") | D28: за 1 кг | E28: 1256 | F28: 1256 | G28: 0.25 | H28: 314 | K28: =IF(I28=#REF!,H28,H28*(1-$I$6)) -> 
A29: 50.89999998 | B29: 00029 | C29: Баунти (Купаж черного чая, мальва, сафлор, кокос кубик, шоколад, кофе зерна, с ароматом "Кокос и Шоколад") | D29: за 1 кг | E29: 1351 | F29: 1351 | G29: 0.25 | H29: 337.75 | K29: =IF(I29=#REF!,H29,H29*(1-$I$6)) -> 
A30: 50.89999998 | B30: 00013 | C30: Черный чай с розой (Купаж черного чая, изюм, роза лепестки, с ароматом "Персик-роза") | D30: за 1 кг | E30: 1351 | F30: 1351 | G30: 0.25 | H30: 337.75 | K30: =IF(I30=#REF!,H30,H30*(1-$I$6)) -> 
A31: 50.89999998 | B31: 00860 | C31: Соусеп (Купаж черного чая, сафлор, календула, цукаты, мальва, с ароматом "Соусеп") | D31: за 1 кг | E31: 1195 | F31: 1195 | G31: 0.25 | H31: 298.75 | K31: =IF(I31=#REF!,H31,H31*(1-$I$6)) -> 
A32: 50.89999998 | B32: 00002 | C32: Брызги шампанского (Купаж черного чая, клубника кусочки, изюм, календула, смородина лист, с ароматом "Виноград") | D32: за 1 кг | E32: 1184 | F32: 1184 | G32: 0.25 | H32: 296 | K32: =IF(I32=#REF!,H32,H32*(1-$I$6)) -> 
A33: 50.89999998 | B33: 00003 | C33: Спелый барбарис (Купаж черного чая, барбарис, смородина лист, клюква ягода, сафлор, с ароматом "Барбарис") | D33: за 1 кг | E33: 1378 | F33: 1378 | G33: 0.25 | H33: 344.5 | K33: =IF(I33=#REF!,H33,H33*(1-$I$6)) -> 
A34: 50.89999998 | B34: 00005 | C34: Императорский черный (Купаж черного чая, цукаты, яблоко, лимон корка, шиповник кожура, роза лепестки, клубника кусочки, с ароматом "Клубника") | D34: за 1 кг | E34: 1399 | F34: 1399 | G34: 0.25 | H34: 349.75 | K34: =IF(I34=#REF!,H34,H34*(1-$I$6)) -> 
A35: 50.89999998 | B35: 00666 | C35: Екатерина великая кат.В (Вьетнамский черный чай, роза лепестки, мальва, клубника кусочки, Каркаде, с ароматом "Клубника") | D35: за 1 кг | E35: 1208 | F35: 1208 | G35: 0.25 | H35: 302 | K35: =IF(I35=#REF!,H35,H35*(1-$I$6)) -> 
A36: 50.89999998 | B36: 00018 | C36: Екатерина великая (Купаж черного чая, роза лепестки, мальва, клубника кусочки, Каркаде, с ароматом "Клубника") | D36: за 1 кг | E36: 1362 | F36: 1362 | G36: 0.25 | H36: 340.5 | K36: =IF(I36=#REF!,H36,H36*(1-$I$6)) -> 
A37: 50.89999998 | B37: 00660 | C37: Конго кат.В (Вьетнамский черный чай, банан, цукаты, календула, с ароматом "Банан") | D37: за 1 кг | E37: 1141 | F37: 1084 | G37: 0.25 | H37: 271 | I37: Акция! | K37: =IF(I37=#REF!,H37,H37*(1-$I$6)) -> 
A38: 50.89999998 | B38: 00019 | C38: Конго (Купаж черного чая, банан, цукаты, календула, с ароматом "Банан") | D38: за 1 кг | E38: 1388 | F38: 1388 | G38: 0.25 | H38: 347 | K38: =IF(I38=#REF!,H38,H38*(1-$I$6)) -> 
A39: 50.89999998 | B39: 00667 | C39: Изабелла кат.В (Вьетнамский черный чай, Каркаде, вишня лист, клюква ягода, изюм, с ароматом "Виноград") | D39: за 1 кг | E39: 1124 | F39: 1068 | G39: 0.25 | H39: 267 | I39: Акция! | K39: =IF(I39=#REF!,H39,H39*(1-$I$6)) -> 
A40: 50.89999998 | B40: 00020 | C40: Изабелла (Купаж черного чая, Каркаде, вишня лист, клюква ягода, изюм, с ароматом "Виноград") | D40: за 1 кг | E40: 1364 | F40: 1364 | G40: 0.25 | H40: 341 | K40: =IF(I40=#REF!,H40,H40*(1-$I$6)) -> 
A41: 50.89999998 | B41: 00021 | C41: Робинзон (Купаж черного чая, цукаты, мальва, гранат цветки, с ароматом "Тропический фрукт") | D41: за 1 кг | E41: 1388 | F41: 1388 | G41: 0.25 | H41: =G41*F41 -> 347 | K41: =IF(I41=#REF!,H41,H41*(1-$I$6)) -> 
A42: 50.89999998 | B42: 00654 | C42: Мишки Гамми кат.В (Вьетнамский черный чай, цукаты, клюква ягода, малина ягода, клубника кусочки, смородина лист, календула, с ароматом "Малина") | D42: за 1 кг | E42: 1218 | F42: 1218 | G42: 0.25 | H42: 304.5 | K42: =IF(I42=#REF!,H42,H42*(1-$I$6)) -> 
A43: 50.89999998 | B43: 00022 | C43: Мишки гамми (Купаж черного чая, цукаты, клюква ягода, малина ягода, клубника кусочки, смородина лист, календула, с ароматом "Малина") | D43: за 1 кг | E43: 1417 | F43: 1417 | G43: 0.25 | H43: 354.25 | K43: =IF(I43=#REF!,H43,H43*(1-$I$6)) -> 
A44: 50.89999998 | B44: 00668 | C44: Ирландские сливки черный кат.В (Вьетнамский черный чай, сафлор, корица, с ароматом "Пломбир") | D44: за 1 кг | E44: 1195 | F44: 1195 | G44: 0.25 | H44: 298.75 | K44: =IF(I44=#REF!,H44,H44*(1-$I$6)) -> 
A45: 50.89999998 | B45: 00030 | C45: Ирландские сливки черный (Купаж черного чая, сафлор, корица, с ароматом "Пломбир") | D45: за 1 кг | E45: 1336 | F45: 1336 | G45: 0.25 | H45: 334 | K45: =IF(I45=#REF!,H45,H45*(1-$I$6)) -> 
A46: 50.89999998 | B46: 1110166 | C46: Сокровище дракона (Купаж черного чая, Каркаде, яблоко, шиповник кожура, ягоды годжи, сафлор, с ароматом "Соусеп") | D46: за 1 кг | E46: 1272 | F46: 1272 | G46: 0.25 | H46: 318 | K46: =IF(I46=#REF!,H46,H46*(1-$I$6)) -> 
A47: 50.89999998 | B47: 00934 | C47: Чай черный "Шоколад" (Купаж черного чая, шоколад капли, с ароматом "Шоколад") | D47: за 1 кг | E47: 1148 | F47: 1148 | G47: 0.25 | H47: 287 | K47: =IF(I47=#REF!,H47,H47*(1-$I$6)) -> 
A48: 50.89999998 | B48: 00933 | C48: Черный чай "Земляника со сливками" (Купаж черного чая, клубника кусочки, сафлор, с ароматом "Земляника и сливки") | D48: за 1 кг | E48: 1312 | F48: 1312 | G48: 0.25 | H48: 328 | K48: =IF(I48=#REF!,H48,H48*(1-$I$6)) -> 
A49: 50.89999998 | B49: 00669 | C49: Черный чай с Медовой Дыней кат.В (Вьетнамский черный чай, цукаты, яблоко, календула, с ароматом "Дыня и Мёд") | D49: за 1 кг | E49: 1190 | F49: 1190 | G49: 0.25 | H49: 297.5 | K49: =IF(I49=#REF!,H49,H49*(1-$I$6)) -> 
A50: 50.89999998 | B50: 00031 | C50: Черный чай с Медовой Дыней (Купаж черного чая, цукаты, яблоко, календула, с ароматом "Дыня и Мёд") | D50: за 1 кг | E50: 1304 | F50: 1304 | G50: 0.25 | H50: 326 | K50: =IF(I50=#REF!,H50,H50*(1-$I$6)) -> 
A51: 50.89999998 | B51: 00671 | C51: Черный чай с персиком кат.В (Вьетнамский черный чай, персик, цукаты, черноплодная рябина ягода, календула, с ароматом "Персик и Роза") | D51: за 1 кг | E51: 1190 | F51: 833 | G51: 0.25 | H51: 208.25 | I51: Акция! | K51: =IF(I51=#REF!,H51,H51*(1-$I$6)) -> 
A52: 50.89999998 | B52: 00033 | C52: Черный чай с персиком (Купаж черного чая, персик, цукаты, черноплодная рябина ягода, календула, с ароматом "Персик и Роза") | D52: за 1 кг | E52: 1388 | F52: 1388 | G52: 0.25 | H52: 347 | K52: =IF(I52=#REF!,H52,H52*(1-$I$6)) -> 
A53: 50.89999998 | B53: 00672 | C53: Черный чай с клюквой кат.В (Вьетнамский черный чай, смородина лист, клюква ягода, изюм, гранат цветки, с ароматом "Клюква") | D53: за 1 кг | E53: 1168 | F53: 1168 | G53: 0.25 | H53: 292 | K53: =IF(I53=#REF!,H53,H53*(1-$I$6)) -> 
A54: 50.89999998 | B54: 00034 | C54: Черный чай с клюквой (Купаж черного чая, смородина лист, клюква ягода, изюм, гранат цветки, с ароматом "Клюква") | D54: за 1 кг | E54: 1256 | F54: 1256 | G54: 0.25 | H54: 314 | K54: =IF(I54=#REF!,H54,H54*(1-$I$6)) -> 
A55: 50.89999998 | B55: 00676 | C55: Черный Баттерскотч кат.В (Вьетнамский черный чай, цукаты, бессмертник, сафлор, с ароматом "Ирландский крем") | D55: за 1 кг | E55: 1205 | F55: 1144 | G55: 0.25 | H55: 286 | I55: Акция! | K55: =IF(I55=#REF!,H55,H55*(1-$I$6)) -> 
A56: 50.89999998 | B56: 00038 | C56: Черный Баттерскотч (Купаж черного чая, цукаты, бессмертник, сафлор, с ароматом "Ирландский крем") | D56: за 1 кг | E56: 1474 | F56: 1474 | G56: 0.25 | H56: 368.5 | K56: =IF(I56=#REF!,H56,H56*(1-$I$6)) -> 
A57: 50.89999998 | B57: 00039 | C57: Джекфрут (Купаж черного чая, цукаты, яблоко, ежевика ягода, ежевика лист, мальва, с ароматом "Фруктовое ассорти") | D57: за 1 кг | E57: 1388 | F57: 1388 | G57: 0.25 | H57: 347 | K57: =IF(I57=#REF!,H57,H57*(1-$I$6)) -> 
A58: 50.89999998 | B58: 00695 | C58: Лиловая слива (Купаж черного чая, вишня лист, черноплодная рябина ягода, цукаты, роза лепестки, с ароматом "Слива") | D58: за 1 кг | E58: 1388 | F58: 1388 | G58: 0.25 | H58: 347 | K58: =IF(I58=#REF!,H58,H58*(1-$I$6)) -> 
A59: 50.89999998 | B59: 00699 | C59: Румяный персик (Купаж черного чая, персик, цукаты, клубника кусочки, календула, с ароматом "Персик") | D59: за 1 кг | E59: 1388 | F59: 1388 | G59: 0.25 | H59: 347 | K59: =IF(I59=#REF!,H59,H59*(1-$I$6)) -> 
A60: 50.89999998 | B60: 00012 | C60: Ягода-малина (Купаж черного чая, малина лист, малина ягода, роза лепестки, с ароматом "Малина") | D60: за 1 кг | E60: 1408 | F60: 1408 | G60: 0.25 | H60: 352 | K60: =IF(I60=#REF!,H60,H60*(1-$I$6)) -> 
A61: 50.89999998 | B61: 00009 | C61: Звездное небо (Купаж черного чая, можжевельник ягода, боярышник, календула, мальва, бессмертник, шалфей, с ароматом "Соусеп") | D61: за 1 кг | E61: 1364 | F61: 1364 | G61: 0.25 | H61: 341 | K61: =IF(I61=#REF!,H61,H61*(1-$I$6)) -> 
A62: 50.89999998 | B62: 00661 | C62: Апельсин в шоколаде кат.В (Вьетнамский черный чай, кофе зерна, календула, апельсин корка, шоколад, с ароматом "Апельсин и Шоколад") | D62: за 1 кг | E62: 1153 | F62: 1153 | G62: 0.25 | H62: 288.25 | K62: =IF(I62=#REF!,H62,H62*(1-$I$6)) -> 
A63: 50.89999998 | B63: 00014 | C63: Апельсин в шоколаде (Купаж черного чая, зерна кофе, календула, апельсин корка, шоколад, с ароматом "Апельсин и Шоколад") | D63: за 1 кг | E63: 1408 | F63: 1408 | G63: 0.25 | H63: 352 | K63: =IF(I63=#REF!,H63,H63*(1-$I$6)) -> 
A64: 50.89999998 | B64: 00663 | C64: Имбирный с медом кат.В (Вьетнамский черный чай, имбирь, розовый перец, календула, с ароматом "Мёд") | D64: за 1 кг | E64: 1208 | F64: 1208 | G64: 0.25 | H64: 302 | K64: =IF(I64=#REF!,H64,H64*(1-$I$6)) -> 
A65: 50.89999998 | B65: 00015 | C65: Имбирный с медом (Купаж черного чая, имбирь, розовый перец, календула, с ароматом "Мёд") | D65: за 1 кг | E65: 1451 | F65: 1451 | G65: 0.25 | H65: 362.75 | K65: =IF(I65=#REF!,H65,H65*(1-$I$6)) -> 
A66: 50.89999998 | B66: 1110729 | C66: Жгучий Апельсин кат.В (Вьетнамский черный чай, апельсин корка, перец чили, перец розовый, корица, с ароматом "Апельсин") | D66: за 1 кг | E66: 1195 | F66: 1135 | G66: 0.25 | H66: 283.75 | I66: Акция! | K66: =IF(I66=#REF!,H66,H66*(1-$I$6)) -> 
A67: 50.89999998 | B67: 00016 | C67: Жгучий Апельсин (Купаж черного чая, корка апельсин, перец чили, перец розовый, корица, с ароматом "Апельсин") | D67: за 1 кг | E67: 1420 | F67: 1420 | G67: 0.25 | H67: 355 | K67: =IF(I67=#REF!,H67,H67*(1-$I$6)) -> 
A68: 50.89999998 | B68: 00665 | C68: Яблочный пирог кат.В (Вьетнамский черный чай, душистый перец, кориандр, кардамон, яблоко, корица, гвоздика, с ароматом "Яблоко") | D68: за 1 кг | E68: 1208 | F68: 1148 | G68: 0.25 | H68: 287 | I68: Акция! | K68: =IF(I68=#REF!,H68,H68*(1-$I$6)) -> 
A69: 50.89999998 | B69: 00017 | C69: Яблочный пирог (Купаж черного чая, душистый перец, кориандр, кардамон, яблоко, корица, гвоздика, с ароматом "Яблоко") | D69: за 1 кг | E69: 1420 | F69: 1420 | G69: 0.25 | H69: 355 | K69: =IF(I69=#REF!,H69,H69*(1-$I$6)) -> 
A70: 50.89999998 | B70: 00670 | C70: Черный чай "Таёжный" кат.В (Вьетнамский черный чай, можжевельник ягода, ягода рябина, черемуха ягода, мальва, с ароматом "Лесные ягоды") | D70: за 1 кг | E70: 1224 | F70: 1224 | G70: 0.25 | H70: 306 | K70: =IF(I70=#REF!,H70,H70*(1-$I$6)) -> 
A71: 50.89999998 | B71: 00032 | C71: Черный чай "Таёжный" (Купаж черного чая, можжевельник ягода, ягода рябина, черемуха ягода, мальва, с ароматом "Лесные ягоды") | D71: за 1 кг | E71: 1408 | F71: 1408 | G71: 0.25 | H71: 352 | K71: =IF(I71=#REF!,H71,H71*(1-$I$6)) -> 
A72: 50.89999998 | B72: 00673 | C72: Абрикосовый десерт кат.В (Вьетнамский черный чай, яблоко, цукаты, календула, с ароматом "Абрикос") | D72: за 1 кг | E72: 1148 | F72: 1148 | G72: 0.25 | H72: 287 | K72: =IF(I72=#REF!,H72,H72*(1-$I$6)) -> 
A73: 50.89999998 | B73: 00035 | C73: Абрикосовый десерт (Купаж черного чая, яблоко, цукаты, календула, с ароматом "Абрикос") | D73: за 1 кг | E73: 1474 | F73: 1474 | G73: 0.25 | H73: =G73*F73 -> 368.5 | K73: =IF(I73=#REF!,H73,H73*(1-$I$6)) -> 
A74: 50.89999998 | B74: 00694 | C74: Орех в шоколаде (Купаж черного чая, кедровый орех, шоколад, календула, кофе зерна, с ароматом "Шоколад и Орех") | D74: за 1 кг | E74: 1399 | F74: 1399 | G74: 0.25 | H74: 349.75 | K74: =IF(I74=#REF!,H74,H74*(1-$I$6)) -> 
A75: 50.89999998 | B75: 00506 | C75: Соусеп Манго (Купаж черного чая, цукаты, мальва, календула, с ароматом "Манго и Соусеп") | D75: за 1 кг | E75: 1264 | F75: 1264 | G75: 0.25 | H75: 316 | K75: =IF(I75=#REF!,H75,H75*(1-$I$6)) -> 
A76: 50.89999998 | B76: 00697 | C76: Лимонный фреш (Купаж черного чая, лимон корка, Лемонграсс, календула, с ароматом "Лимон") | D76: за 1 кг | E76: 1364 | F76: 1296 | G76: 0.25 | H76: 324 | I76: Акция! | K76: =IF(I76=#REF!,H76,H76*(1-$I$6)) -> 
A77: 50.89999998 | B77: 00510 | C77: Дивный сад (Купаж черного чая, смородина лист, вишня лист, облепиха лист, малина ягода, мальва, черноплодная рябина ягода, с ароматом "Облепиха") | D77: за 1 кг | E77: 1609 | F77: 1609 | G77: 0.25 | H77: 402.25 | K77: =IF(I77=#REF!,H77,H77*(1-$I$6)) -> 
A78: 50.89999998 | B78: 00508 | C78: Дары тайги (Купаж черного чая, можжевельник ягода, шиповник кожура, боярышник, мальва, чабрец, с ароматом "Черника") | D78: за 1 кг | E78: 1451 | F78: 1451 | G78: 0.25 | H78: 362.75 | K78: =IF(I78=#REF!,H78,H78*(1-$I$6)) -> 
A79: 50.89999998 | B79: 1110234 | C79: Волшебная луна (Сенча, кенийский черный, сафлор, календула, мальва, роза лепестки, жасмин, персик, цукаты, с ароматом "Персик") | D79: за 1 кг | E79: 1499 | F79: 1424 | G79: 0.25 | H79: 356 | I79: Акция! | K79: =IF(I79=#REF!,H79,H79*(1-$I$6)) -> 
A80: 50.89999998 | B80: 1110238 | C80: Ночь Клеопатры (Купаж черного чая, Сенча, мальва, роза лепестки, календула, клубника кусочки, персик, с ароматом "Манго") | D80: за 1 кг | E80: 1451 | F80: 1451 | G80: 0.25 | H80: 362.75 | K80: =IF(I80=#REF!,H80,H80*(1-$I$6)) -> 
A81: 50.89999998 | B81: 1110249 | C81: Рождественский (Купаж черного чая, Сенча, лимон корка, яблоко, апельсин дольки, Лемонграсс, корица, гвоздика, с ароматом "Сливки") | D81: за 1 кг | E81: 1435 | F81: 1435 | G81: 0.25 | H81: 358.75 | K81: =IF(I81=#REF!,H81,H81*(1-$I$6)) -> 
A82: 50.89999998 | B82: 1110212 | C82: Загадка фараона (Купаж черного чая, шоколад капли, изюм, с ароматомы "Виноград" и "Коньяк") | D82: за 1 кг | E82: 1301 | F82: 1301 | G82: 0.25 | H82: 325.25 | K82: =IF(I82=#REF!,H82,H82*(1-$I$6)) -> 
A83: 50.89999998 | B83: 1110214 | C83: Апельсиновое печенье (Купаж черного чая, яблоко, корица, кориандр, кардамон, апельсин корка, розовый перец, гвоздика, с ароматом "Апельсин") | D83: за 1 кг | E83: 1378 | F83: 1378 | G83: 0.25 | H83: 344.5 | K83: =IF(I83=#REF!,H83,H83*(1-$I$6)) -> 
A84: 50.89999998 | B84: 1110245 | C84: Зимняя вишня (Купаж черного чая, вишня ягода, шоколад капли, с ароматомы "Вишня" и "Сливки") | D84: за 1 кг | E84: 1390 | F84: 1390 | G84: 0.25 | H84: 347.5 | K84: =IF(I84=#REF!,H84,H84*(1-$I$6)) -> 
A85: 50.89999998 | B85: 1110247 | C85: Новогодний (Купаж черного чая, корица, кардамон, гвоздика, апельсин дольки, розовый перец, лимон корка, с ароматом "Апельсин") | D85: за 1 кг | E85: 1312 | F85: 1312 | G85: 0.25 | H85: 328 | K85: =IF(I85=#REF!,H85,H85*(1-$I$6)) -> 
A86: 50.89999998 | B86: 1110257 | C86: Шоколад с мятой (Купаж черного чая, яблоко, миндаль, шоколад капли, мята, с ароматом "Пломбир и Шоколад") | D86: за 1 кг | E86: 1459 | F86: 1386 | G86: 0.25 | H86: 346.5 | I86: Акция! | K86: =IF(I86=#REF!,H86,H86*(1-$I$6)) -> 
A87: 50.89999998 | B87: 1110258 | C87: Годжи гранат (Купаж черного чая, ягоды годжи, апельсин корка, сафлор, роза бутоны, Каркаде, с ароматом "Гранат") | D87: за 1 кг | E87: 1343 | F87: 1343 | G87: 0.25 | H87: 335.75 | K87: =IF(I87=#REF!,H87,H87*(1-$I$6)) -> 
A88: 50.89999998 | B88: 1110259 | C88: Тоффи (Купаж черного чая, карамель кусочки, шоколад капли, с ароматомы "Ваниль" и "Карамель") | D88: за 1 кг | E88: 1459 | F88: 1386 | G88: 0.25 | H88: 346.5 | I88: Акция! | K88: =IF(I88=#REF!,H88,H88*(1-$I$6)) -> 
A89: 50.89999998 | B89: 1110262 | C89: Болдинская сказка (Купаж черного чая, малина ягода, клубника кусочки, малина ягода, вишня ягода, земляника лист, календула, с ароматомы "Смородина и Вишня") | D89: за 1 кг | E89: 1459 | F89: 1459 | G89: 0.25 | H89: 364.75 | K89: =IF(I89=#REF!,H89,H89*(1-$I$6)) -> 
A90: 50.89999998 | B90: 00512 | C90: Лавка пряностей (Купаж черного чая, кардамон, кориандр, фенхель, корица, розовый перец, с ароматом "Корица") | D90: за 1 кг | E90: 1451 | F90: 1451 | G90: 0.25 | H90: 362.75 | K90: =IF(I90=#REF!,H90,H90*(1-$I$6)) -> 
A91: 50.89999998 | B91: 00603 | C91: Сладкий киви (Купаж черного чая, цукаты, смородина лист, календула, с ароматом "Киви") | D91: за 1 кг | E91: 1474 | F91: 1474 | G91: 0.25 | H91: 368.5 | K91: =IF(I91=#REF!,H91,H91*(1-$I$6)) -> 
A92: 50.89999998 | B92: 00006 | C92: 1001 ночь (Купаж черного чая, Сенча, изюм, цукаты, роза лепестки, календула, мальва, с ароматом "Персик-роза" ) | D92: за 1 кг | E92: 1400 | F92: 1400 | G92: 0.25 | H92: 350 | K92: =IF(I92=#REF!,H92,H92*(1-$I$6)) -> 
A93: 50.89999998 | B93: 00662 | C93: Медовая карамель кат.В (Вьетнамский черный чай, яблоко, мальва, календула, бессмертник, с ароматом "Мед и Карамель") | D93: за 1 кг | E93: 1153 | F93: 1153 | G93: 0.25 | H93: 288.25 | K93: =IF(I93=#REF!,H93,H93*(1-$I$6)) -> 
A94: 50.89999998 | B94: 00008 | C94: Медовая карамель (купаж черного чая, яблоко, мальва, календула, бессмертник, с ароматом "Мед и Карамель") | D94: за 1 кг | E94: 1456 | F94: 1456 | G94: 0.25 | H94: 364 | K94: =IF(I94=#REF!,H94,H94*(1-$I$6)) -> 
A95: 50.89999998 | B95: 00675 | C95: Черный чай с арбузом кат.В (Вьетнамский черный чай, смородина лист, роза лепестки, малина лист, шиповник кожура, гранат цветки, клюква ягода, с ароматом "Арбуз") | D95: за 1 кг | E95: 1195 | F95: 1195 | G95: 0.25 | H95: 298.75 | K95: =IF(I95=#REF!,H95,H95*(1-$I$6)) -> 
A96: 50.89999998 | B96: 00037 | C96: Черный чай с арбузом (Купаж черного чая, смородина лист, роза лепестки, малина лист, гранат цветки, шиповник кожура, клюква ягода, с ароматом "Арбуз") | D96: за 1 кг | E96: 1490 | F96: 1416 | G96: 0.25 | H96: 354 | I96: Акция! | K96: =IF(I96=#REF!,H96,H96*(1-$I$6)) -> 
A97: 50.89999998 | B97: 00674 | C97: Чай черный "Черная смородина" кат.В (Вьетнамский черный чай, смородина ягода, смородина лист, мальва, с ароматом "Смородина") | D97: за 1 кг | E97: 1168 | F97: 1168 | G97: 0.25 | H97: 292 | K97: =IF(I97=#REF!,H97,H97*(1-$I$6)) -> 
A98: 50.89999998 | B98: 00036 | C98: Чай черный "Черная смородина" (Купаж черного чая, смородина ягода, смородина лист, мальва, с ароматом "Смородина") | D98: за 1 кг | E98: 1547 | F98: 1547 | G98: 0.25 | H98: 386.75 | K98: =IF(I98=#REF!,H98,H98*(1-$I$6)) -> 
A99: 50.89999998 | B99: 00007 | C99: Русский чай с ягодами (Иван-чай, купаж черного чая, можжевельник ягода, шиповник кожура, смородина ягода, красная рябина ягода, с ароматом "Лесные ягоды") | D99: за 1 кг | E99: 1501 | F99: 1501 | G99: 0.25 | H99: 375.25 | K99: =IF(I99=#REF!,H99,H99*(1-$I$6)) -> 
A100: 50.89999998 | B100: 00639 | C100: 1001 ночь Premium (Цейлонский ОР, Сенча, черемуха ягода, персик, изюм, цукаты, роза лепестки, гранат цветки, мальва, с ароматом "Персик-роза") | D100: за 1 кг | E100: 1628 | F100: 1628 | G100: 0.25 | H100: 407 | I100: Premium NEW | K100: =IF(I100=#REF!,H100,H100*(1-$I$6)) -> 
A101: 50.89999998 | B101: 00623 | C101: Соусеп Premium (Цейлонский ОР, мальва, сафлор, календула, цукаты, банан, персик, с ароматом "Соусеп") | D101: за 1 кг | E101: 1674 | F101: 1674 | G101: 0.25 | H101: 418.5 | I101: Premium NEW | K101: =IF(I101=#REF!,H101,H101*(1-$I$6)) -> 
A102: 50.89999998 | B102: 00625 | C102: Мишки Гамми Premium (Цейлонский ОР, цукаты, клюква ягода, бессмертник, можжевельник ягода, малина ягода, клубника кусочки, смородина лист, календула, с ароматом "Малина") | D102: за 1 кг | E102: 1756 | F102: 1756 | G102: 0.25 | H102: 439 | I102: Premium NEW | K102: =IF(I102=#REF!,H102,H102*(1-$I$6)) -> 
A103: 50.89999998 | B103: 00638 | C103: Брызги шампанского Premium (Цейлонский ОР, бессмертник, вишня ягода, изюм, клубника кусочки, календула, смородина лист, с ароматом "Виноград") | D103: за 1 кг | E103: 1732 | F103: 1732 | G103: 0.25 | H103: 433 | I103: Premium NEW | K103: =IF(I103=#REF!,H103,H103*(1-$I$6)) -> 
A104: 50.89999998 | B104: 00647 | C104: Конго Premium (Цейлонсикй Ор, персик, апельсин дольки, банан, цукаты, календула, с ароматом "Банан и Апельсин") | D104: за 1 кг | E104: 1824 | F104: 1824 | G104: 0.25 | H104: 456 | I104: Premium NEW | K104: =IF(I104=#REF!,H104,H104*(1-$I$6)) -> 
A105: 50.89999998 | B105: 00640 | C105: Императорский черный Premium (Цейлонский ОР, черноплодная рябина ягода, апельсин дольки, цукаты, яблоко, лимон корка, шиповник кожура, роза лепестки, клубника кусочки, с ароматом "Клубника") | D105: за 1 кг | E105: 1824 | F105: 1824 | G105: 0.25 | H105: =G105*F105 -> 456 | I105: Premium NEW | K105: =IF(I105=#REF!,H105,H105*(1-$I$6)) -> 
A106: 50.89999998 | B106: 00644 | C106: Граф Орлов Premium (Цейлонский ОР, красная рябина ягода, черноплодная рябина ягода, черемуха ягода, гранат цветки, мальва, сафлор, клубника кусочки, цукаты, персик, с ароматом "Земляника") | D106: за 1 кг | E106: 1853 | F106: 1853 | G106: 0.25 | H106: 463.25 | I106: Premium NEW | K106: =IF(I106=#REF!,H106,H106*(1-$I$6)) -> 
A107: 50.89999998 | B107: 00653 | C107: Пряный цитрус Premium (Цейлонский ОР, душистый перец, кориандр, кардамон, яблоко, корица, дольки апельсина, с ароматом "Апельсин") | D107: за 1 кг | E107: 1830 | F107: 1830 | G107: 0.25 | H107: 457.5 | I107: Premium NEW | K107: =IF(I107=#REF!,H107,H107*(1-$I$6)) -> 
A108: 50.89999998 | B108: 00643 | C108: Екатерина великая Premium (Цейлонский ОР, ежевика ягода, ежевика лист, роза лепестки, мальва, клубника кусочки, гранат цветки, Каркаде, с ароматом "Клубника") | D108: за 1 кг | E108: 1873 | F108: 1873 | G108: 0.25 | H108: 468.25 | I108: Premium NEW | K108: =IF(I108=#REF!,H108,H108*(1-$I$6)) -> 
A109: 50.89999998 | B109: 00642 | C109: Жгучий Апельсин Premium (Цейлонский ОР, лимон корка, Лемонграсс, перец чили, перец розовый, корица, с ароматом "Апельсин") | D109: за 1 кг | E109: 1943 | F109: 1943 | G109: 0.25 | H109: 485.75 | I109: Premium NEW | K109: =IF(I109=#REF!,H109,H109*(1-$I$6)) -> 
A110: 50.89999998 | B110: 01153 | C110: Клубника со сливками Premium (Цейлонский ОР, клубника кусочки, ежевика ягода, смородина лист, сафлор, с ароматом "Клубника и Молоко") | D110: за 1 кг | E110: 2014 | F110: 2014 | G110: 0.25 | H110: 503.5 | I110: Premium NEW | K110: =IF(I110=#REF!,H110,H110*(1-$I$6)) -> 
B111: katb | C111: Чёрный чай Eco-line | G111: 0.25 | K111: =IF(I111=#REF!,H111,H111*(1-$I$6)) -> 
A112: 50.89999998 | B112: 00977 | C112: Черный чай "Татарский" (Купаж черного чая, смородина лист, малина лист, брусника лист, мята, чабрец, душица, липа, ромашка) | D112: за 1 кг | E112: 1574 | F112: 1574 | G112: 0.25 | H112: =G112*F112 -> 393.5 | K112: =IF(I112=#REF!,H112,H112*(1-$I$6)) -> 
A113: 50.89999998 | B113: 00047 | C113: Охотничий (Купаж черного чая, смородина лист, можжевельник ягода, чабрец, брусника лист) | D113: за 1 кг | E113: 1321 | F113: 1321 | G113: 0.25 | H113: 330.25 | K113: =IF(I113=#REF!,H113,H113*(1-$I$6)) -> 
A114: 50.89999998 | B114: 01013 | C114: Черный чай "Для Мужчин" (Купаж черного чая, брусника лист, можжевельник ягода, черноплодная рябина ягода, смородина лист, красная рябина) | D114: за 1 кг | E114: 1351 | F114: 1351 | G114: 0.25 | H114: 337.75 | K114: =IF(I114=#REF!,H114,H114*(1-$I$6)) -> 
A115: 50.89999998 | B115: 00049 | C115: Черный с имбирем (Купаж черного чая, имбирь) | D115: за 1 кг | E115: 1327 | F115: 1327 | G115: 0.25 | H115: 331.75 | K115: =IF(I115=#REF!,H115,H115*(1-$I$6)) -> 
A116: 50.89999998 | B116: 1111679 | C116: Хорошее настроение (Купаж черного чая, мята, липа) | D116: за 1 кг | E116: 1152 | F116: 1152 | G116: 0.25 | H116: 288 | I116: NEW! | K116: =IF(I116=#REF!,H116,H116*(1-$I$6)) -> 
A117: 50.89999998 | B117: 00043 | C117: Черный чай с чабрецом (Купаж черного чая, чабрец) | D117: за 1 кг | E117: 1146 | F117: 1146 | G117: 0.25 | H117: 286.5 | K117: =IF(I117=#REF!,H117,H117*(1-$I$6)) -> 
A118: 50.89999998 | B118: 00048 | C118: Черный чай с лавандой (Купаж черного чая, лаванда, жасмин) | D118: за 1 кг | E118: 1256 | F118: 1194 | G118: 0.25 | H118: 298.5 | I118: Акция! | K118: =IF(I118=#REF!,H118,H118*(1-$I$6)) -> 
A119: 50.89999998 | B119: 00050 | C119: Черный чай со смородиной (Купаж черного чая, смородина лист, шиповник кожура) | D119: за 1 кг | E119: 1381 | F119: 1381 | G119: 0.25 | H119: 345.25 | K119: =IF(I119=#REF!,H119,H119*(1-$I$6)) -> 
A120: 50.89999998 | B120: 00052 | C120: Черный чай с мелиссой и мятой (Купаж черного чая, мелисса, мята) | D120: за 1 кг | E120: 1386 | F120: 1386 | G120: 0.25 | H120: 346.5 | K120: =IF(I120=#REF!,H120,H120*(1-$I$6)) -> 
A121: 50.89999998 | B121: 00046 | C121: Лимонник (Купаж черного чая, лимон корка, Лемонграсс, календула) | D121: за 1 кг | E121: 1381 | F121: 1381 | G121: 0.25 | H121: 345.25 | K121: =IF(I121=#REF!,H121,H121*(1-$I$6)) -> 
A122: 50.89999998 | B122: 00044 | C122: Черный чай с шалфеем (Купаж черного чая, шалфей) | D122: за 1 кг | E122: 1381 | F122: 1381 | G122: 0.25 | H122: 345.25 | K122: =IF(I122=#REF!,H122,H122*(1-$I$6)) -> 
A123: 50.89999998 | B123: 00677 | C123: Черный чай "С легким паром" кат.В (Вьетнамский черный чай, мелисса, шалфей, Лемонграсс, мята, календула, чабрец, липа) | D123: за 1 кг | E123: 1198 | F123: 1138 | G123: 0.25 | H123: 284.5 | I123: Акция! | K123: =IF(I123=#REF!,H123,H123*(1-$I$6)) -> 
A124: 50.89999998 | B124: 00045 | C124: Черный чай "С легким паром" (Купаж черного чая, мелисса, шалфей, Лемонграсс, мята, календула, чабрец, липа) | D124: за 1 кг | E124: 1128 | F124: 1128 | G124: 0.25 | H124: 282 | K124: =IF(I124=#REF!,H124,H124*(1-$I$6)) -> 
A125: 50.89999998 | B125: 00051 | C125: Золотая корица (Купаж черного чая, корица, календула) | D125: за 1 кг | E125: 1253 | F125: 1253 | G125: 0.25 | H125: 313.25 | K125: =IF(I125=#REF!,H125,H125*(1-$I$6)) -> 
A126: 50.89999998 | B126: 00040 | C126: Масала Чай классический (Купаж черного чая, имбирь, фенхель, корица, кардамон, бадьян) | D126: за 1 кг | E126: 1225 | F126: 1225 | G126: 0.25 | H126: 306.25 | K126: =IF(I126=#REF!,H126,H126*(1-$I$6)) -> 
A127: 50.89999998 | B127: 00041 | C127: Масала Чай с имбирем (Купаж черного чая, имбирь, фенхель, лимон корка, перец душистый, Лемонграсс) | D127: за 1 кг | E127: 1405 | F127: 1334 | G127: 0.25 | H127: 333.5 | I127: Акция! | K127: =IF(I127=#REF!,H127,H127*(1-$I$6)) -> 
A128: 50.89999998 | B128: 00042 | C128: Масала Чай с корицей (Купаж черного чая, имбирь, фенхель, корица, гвоздика) | D128: за 1 кг | E128: 1405 | F128: 1405 | G128: 0.25 | H128: 351.25 | K128: =IF(I128=#REF!,H128,H128*(1-$I$6)) -> 
A129: 50.89999998 | B129: 00572 | C129: Содружество (Купаж черного чая, Ассам, И Синь Хун Ча, Иван-чай) | D129: за 1 кг | E129: 1328 | F129: 1328 | G129: 0.25 | H129: 332 | K129: =IF(I129=#REF!,H129,H129*(1-$I$6)) -> 
A130: 50.89999998 | B130: 1110237 | C130: Чай для бани (Купаж черного чая, Сенча, смородина лист, земляника лист, мята, крапива, красная рябина ягода, смородина ягода, черноплодная рябина ягода, чабрец, липа) | D130: за 1 кг | E130: 1454 | F130: 1454 | G130: 0.25 | H130: 363.5 | I130: NEW! | K130: =IF(I130=#REF!,H130,H130*(1-$I$6)) -> 
A131: 50.89999998 | B131: 00701 | C131: Черный чай Саган-Дайля (Купаж черного чая, Ассам, Саган-Дайля) | D131: за 1 кг | E131: 1686 | F131: 1686 | G131: 0.25 | H131: 421.5 | K131: =IF(I131=#REF!,H131,H131*(1-$I$6)) -> 
B132: katc | C132: Чёрные (Индия, Кения, Цейлон, Китай, Вьетнам) | K132: =IF(I132=#REF!,H132,H132*(1-$I$6)) -> 
A133: 50.89999998 | B133: 00949 | C133: Черный ОРА, Вьетнам (стд. 1447) | D133: за 1 кг | E133: 848 | F133: 848 | G133: 0.25 | H133: =G133*F133 -> 212 | K133: =IF(I133=#REF!,H133,H133*(1-$I$6)) -> 
A134: 50.89999998 | B134: 00596 | C134: Дянь Хун (Чай красный китайский) | D134: за 1 кг | E134: 1336 | F134: 1336 | G134: 0.25 | H134: 334 | K134: =IF(I134=#REF!,H134,H134*(1-$I$6)) -> 
A135: 50.89999998 | B135: 01167 | C135: Цзинь Хао Дянь Хун (Золотая Обезьяна) | D135: за 1 кг | E135: 3905 | F135: 3905 | G135: 0.25 | H135: 976.25 | I135: NEW! | K135: =IF(I135=#REF!,H135,H135*(1-$I$6)) -> 
A136: 50.89999998 | B136: 00058 | C136: Най Сян Хун Ча (Красный Молочный чай) | D136: за 1 кг | E136: 1417 | F136: 1417 | G136: 0.25 | H136: 354.25 | K136: =IF(I136=#REF!,H136,H136*(1-$I$6)) -> 
A137: 50.89999998 | B137: 01021 | C137: Черный чай "Кенийский FOP" | D137: за 1 кг | E137: 1514 | F137: 1514 | G137: 0.25 | H137: 378.5 | K137: =IF(I137=#REF!,H137,H137*(1-$I$6)) -> 
A138: 50.89999998 | B138: 00054 | C138: Ассам крупнолистовой OPA | D138: за 1 кг | E138: 1158 | F138: 1158 | G138: 0.25 | H138: 289.5 | K138: =IF(I138=#REF!,H138,H138*(1-$I$6)) -> 
A139: 50.89999998 | B139: 01062 | C139: Ассам PEKOE (стд. 33 А) | D139: за 1 кг | E139: 1170 | F139: 1170 | G139: 0.25 | H139: 292.5 | K139: =IF(I139=#REF!,H139,H139*(1-$I$6)) -> 
A140: 50.89999998 | B140: 00056 | C140: И Синь Хун Ча (Черный китайский чай) | D140: за 1 кг | E140: 1370 | F140: 1370 | G140: 0.25 | H140: 342.5 | K140: =IF(I140=#REF!,H140,H140*(1-$I$6)) -> 
A141: 50.89999998 | B141: 01061 | C141: Цейлонский черный PEKOE (стд. 476) | D141: за 1 кг | E141: 1378 | F141: 1378 | G141: 0.25 | H141: 344.5 | K141: =IF(I141=#REF!,H141,H141*(1-$I$6)) -> 
A142: 50.89999998 | B142: 00059 | C142: Цейлонский черный OP (стд. 469) | D142: за 1 кг | E142: 1476 | F142: 1476 | G142: 0.25 | H142: 369 | K142: =IF(I142=#REF!,H142,H142*(1-$I$6)) -> 
A143: 50.89999998 | B143: 1110102 | C143: Ассам (с типсами) FTGFOP 385 | D143: за 1 кг | E143: 1446 | F143: 1446 | G143: 0.25 | H143: 361.5 | K143: =IF(I143=#REF!,H143,H143*(1-$I$6)) -> 
A144: 50.89999998 | B144: 01119 | C144: Английский завтрак (Цейлонский, Ассам ОРА, Ассам) | D144: за 1 кг | E144: 1313 | F144: 1313 | G144: 0.25 | H144: 328.25 | K144: =IF(I144=#REF!,H144,H144*(1-$I$6)) -> 
A145: 50.89999998 | B145: 00053 | C145: Английский завтрак Premium (Дарджилинг, Ассам ОРА, Ассам) | D145: за 1 кг | E145: 1462 | F145: 1462 | G145: 0.25 | H145: 365.5 | K145: =IF(I145=#REF!,H145,H145*(1-$I$6)) -> 
A146: 50.89999998 | B146: 00055 | C146: Дарджилинг | D146: за 1 кг | E146: 2306 | F146: 2306 | G146: 0.25 | H146: 576.5 | K146: =IF(I146=#REF!,H146,H146*(1-$I$6)) -> 
A147: 50.89999998 | B147: 00057 | C147: Лапсанг сушонг (Черный "копченый" китайский чай) | D147: за 1 кг | E147: 2251 | F147: 2251 | G147: 0.25 | H147: 562.75 | K147: =IF(I147=#REF!,H147,H147*(1-$I$6)) -> 
B148: katd | C148: Зеленый чай AROMA | G148: 0.25 | K148: =IF(I148=#REF!,H148,H148*(1-$I$6)) -> 
A149: 50.89999998 | B149: 01068 | C149: Клубника со сливками кат.В (Ганпаудер, клубника кусочки, смородина лист, с ароматом "Клубника и Молоко") | D149: за 1 кг | E149: 1051 | F149: 1051 | G149: 0.25 | H149: =G149*F149 -> 262.75 | K149: =IF(I149=#REF!,H149,H149*(1-$I$6)) -> 
A150: 50.89999998 | B150: 00069 | C150: Клубника со сливками (Ганпаудер, клубника кусочки, смородина лист, с ароматом "Клубника и Молоко") | D150: за 1 кг | E150: 1242 | F150: 1242 | G150: 0.25 | H150: 310.5 | K150: =IF(I150=#REF!,H150,H150*(1-$I$6)) -> 
A151: 50.89999998 | B151: 1111676 | C151: Золотой Самовар (Сенча, ягоды ежевики, ягоды черной смородины, клубника, яблоко, шиповник кожура, с ароматом "Малина и смородина") | D151: за 1 кг | E151: 1238 | F151: 1238 | G151: 0.25 | H151: 309.5 | K151: =IF(I151=#REF!,H151,H151*(1-$I$6)) -> 
A152: 50.89999998 | B152: 1111677 | C152: Меч самурая (Ганпаудер, вишня ягода, лемонграсс, лимон, миндаль, с ароматом "Лимон и миндаль") | D152: за 1 кг | E152: 1157 | F152: 1157 | G152: 0.25 | H152: 289.25 | K152: =IF(I152=#REF!,H152,H152*(1-$I$6)) -> 
A153: 50.89999998 | B153: 01073 | C153: Грезы Султана кат.В (Ганпаудер, цукаты, сафлор, мальва, календула, роза лепестки, с ароматом "Персик-Манго") | D153: за 1 кг | E153: 1087 | F153: 1087 | G153: 0.25 | H153: 271.75 | K153: =IF(I153=#REF!,H153,H153*(1-$I$6)) -> 
A154: 50.89999998 | B154: 00517 | C154: Грезы Султана (Ганпаудер, цукаты, сафлор, мальва, календула, роза лепестки, с ароматом "Персик-Манго") | D154: за 1 кг | E154: 1267 | F154: 1267 | G154: 0.25 | H154: 316.75 | K154: =IF(I154=#REF!,H154,H154*(1-$I$6)) -> 
A155: 50.89999998 | B155: 1111124 | C155: 4 Ангела (Ганпаудер, цукаты, ягоды годжи, ежевика ягода, роза лепестки, ежевика лист, липа, с ароматом "Абрикос и персик") | D155: за 1 кг | E155: 1190 | F155: 1190 | G155: 0.25 | H155: 297.5 | K155: =IF(I155=#REF!,H155,H155*(1-$I$6)) -> 
A156: 50.89999998 | B156: 1111125 | C156: Белая Королева (Сенча, цукаты, изюм, карамель, персик, жасмин, малина ягода, клубника ягода, с ароматом "Жасмин и слива") | D156: за 1 кг | E156: 1408 | F156: 1408 | G156: 0.25 | H156: 352 | I156: NEW! | K156: =IF(I156=#REF!,H156,H156*(1-$I$6)) -> 
A157: 50.89999998 | B157: 01083 | C157: Земляника со сливками (Ганпаудер, клубника кусочки, сафлор, с ароматом "Земляника+молоко") | D157: за 1 кг | E157: 1390 | F157: 1390 | G157: 0.25 | H157: 347.5 | K157: =IF(I157=#REF!,H157,H157*(1-$I$6)) -> 
A158: 50.89999998 | B158: 01070 | C158: Молочный Ганпаудер кат.В (Ганпаудер крупный, с ароматом "Молоко") | D158: за 1 кг | E158: 1001 | F158: 1001 | G158: 0.25 | H158: 250.25 | K158: =IF(I158=#REF!,H158,H158*(1-$I$6)) -> 
A159: 50.89999998 | B159: 00914 | C159: Молочный Ганпаудер (Ганпаудер мелкий, с ароматом "Молоко") | D159: за 1 кг | E159: 1178 | F159: 1061 | G159: 0.25 | H159: 265.25 | I159: Акция! | K159: =IF(I159=#REF!,H159,H159*(1-$I$6)) -> 
A160: 50.89999998 | B160: 1110253 | C160: Сокровища шейха (Ганпаудер, цукаты, апельсин корка, роза бутоны, с ароматом "Соусеп") | D160: за 1 кг | E160: 1399 | F160: 1399 | G160: 0.25 | H160: 349.75 | I160: NEW! | K160: =IF(I160=#REF!,H160,H160*(1-$I$6)) -> 
A161: 50.89999998 | B161: 1110246 | C161: Шамаханская царица (Ганпаудер, роза бутоны, изюм, мальва, с ароматом "Виноград") | D161: за 1 кг | E161: 1327 | F161: 1327 | G161: 0.25 | H161: 331.75 | K161: =IF(I161=#REF!,H161,H161*(1-$I$6)) -> 
A162: 50.89999998 | B162: 00514 | C162: Зеленый чай с имбирем и медом (Сенча, имбирь, календула, арома-мёд) | D162: за 1 кг | E162: 1328 | F162: 1328 | G162: 0.25 | H162: 332 | K162: =IF(I162=#REF!,H162,H162*(1-$I$6)) -> 
A163: 50.89999998 | B163: 00075 | C163: Зеленый чай "Черничный" (Сенча, черемуха, с ароматом "Черника") | D163: за 1 кг | E163: 1369 | F163: 1232 | G163: 0.25 | H163: 308 | I163: Акция! | K163: =IF(I163=#REF!,H163,H163*(1-$I$6)) -> 
A164: 50.89999998 | B164: 00896 | C164: Зеленый чай с жасмином (Сенча, жасмин цветы, с ароматом "Жасмин") | D164: за 1 кг | E164: 1394 | F164: 1394 | G164: 0.25 | H164: 348.5 | K164: =IF(I164=#REF!,H164,H164*(1-$I$6)) -> 
A165: 50.89999998 | B165: 00633 | C165: Моли Хуа Ча (Зеленый чай с жасмином) | D165: за 1 кг | E165: 1212 | F165: 1212 | G165: 0.25 | H165: 303 | K165: =IF(I165=#REF!,H165,H165*(1-$I$6)) -> 
A166: 50.89999998 | B166: 00077 | C166: Силуэт Императрицы (Ганпаудер, боярышник, можжевельник ягода, клубника кусочки, ромашка, корица, гранат цветки, душица, с ароматом "Клубника и Банан") | D166: за 1 кг | E166: 1381 | F166: 1381 | G166: 0.25 | H166: 345.25 | K166: =IF(I166=#REF!,H166,H166*(1-$I$6)) -> 
A167: 50.89999998 | B167: 00064 | C167: Зеленый цитрус (Ганпаудер, Лемонграсс, лимон корка, с ароматом "Апельсин") | D167: за 1 кг | E167: 1213 | F167: 1213 | G167: 0.25 | H167: 303.25 | K167: =IF(I167=#REF!,H167,H167*(1-$I$6)) -> 
A168: 50.89999998 | B168: 00065 | C168: Зеленое яблоко (Сенча, яблоко, смородина лист, календула, с ароматом "Яблоко") | D168: за 1 кг | E168: 1249 | F168: 1249 | G168: 0.25 | H168: 312.25 | K168: =IF(I168=#REF!,H168,H168*(1-$I$6)) -> 
A169: 50.89999998 | B169: 00067 | C169: Апельсин с имбирем (Сенча, имбирь, Лемонграсс, апельсин корка, с ароматом "Апельсин") | D169: за 1 кг | E169: 1249 | F169: 1249 | G169: 0.25 | H169: 312.25 | K169: =IF(I169=#REF!,H169,H169*(1-$I$6)) -> 
A170: 50.89999998 | B170: 00063 | C170: Жасминовый Ганпаудер (Ганпаудер, жасмин, с ароматом "Жасмин") | D170: за 1 кг | E170: 1290 | F170: 1290 | G170: 0.25 | H170: 322.5 | K170: =IF(I170=#REF!,H170,H170*(1-$I$6)) -> 
A171: 50.89999998 | B171: 01069 | C171: Виноградная лоза кат.В (Ганпаудер, вишня лист, мальва, изюм, с ароматом "Виноград") | D171: за 1 кг | E171: 1046 | F171: 1046 | G171: 0.25 | H171: 261.5 | K171: =IF(I171=#REF!,H171,H171*(1-$I$6)) -> 
A172: 50.89999998 | B172: 00070 | C172: Виноградная лоза (Ганпаудер, вишня лист, мальва, изюм, с ароматом "Виноград") | D172: за 1 кг | E172: 1290 | F172: 1225 | G172: 0.25 | H172: 306.25 | I172: Акция! | K172: =IF(I172=#REF!,H172,H172*(1-$I$6)) -> 
A173: 50.89999998 | B173: 00091 | C173: Черничный йогурт зеленый (Сенча, черноплодная рябина ягода, клубника кусочки, мальва, с ароматом "Йогурт и Черника") | D173: за 1 кг | E173: 1349 | F173: 1349 | G173: 0.25 | H173: 337.25 | K173: =IF(I173=#REF!,H173,H173*(1-$I$6)) -> 
A174: 50.89999998 | B174: 00094 | C174: Аргентинское танго (Сенча, Лемонграсс, ромашка, имбирь, черноплодная рябина ягода, апельсин корка, с ароматом "Соусеп") | D174: за 1 кг | E174: 1349 | F174: 1349 | G174: 0.25 | H174: 337.25 | K174: =IF(I174=#REF!,H174,H174*(1-$I$6)) -> 
A175: 50.89999998 | B175: 00704 | C175: Вкус праздника (Сенча, мальва, сафлор, апельсин корка, цукаты, с ароматом "Мандарин") | D175: за 1 кг | E175: 1372 | F175: 1372 | G175: 0.25 | H175: 343 | K175: =IF(I175=#REF!,H175,H175*(1-$I$6)) -> 
A176: 50.89999998 | B176: 00590 | C176: Румяный персик зеленый (Сенча, персик, цукаты, клубника кусочки, календула, с ароматом "Персик") | D176: за 1 кг | E176: 1386 | F176: 1386 | G176: 0.25 | H176: 346.5 | K176: =IF(I176=#REF!,H176,H176*(1-$I$6)) -> 
A177: 50.89999998 | B177: 00706 | C177: Кокосовый остров (Сенча, кокос кубик, цукаты, мальва, с ароматом "Кокос") | D177: за 1 кг | E177: 1386 | F177: 1386 | G177: 0.25 | H177: 346.5 | K177: =IF(I177=#REF!,H177,H177*(1-$I$6)) -> 
A178: 50.89999998 | B178: 1110266 | C178: Путь Дракона (Ганпаудер, яблоко, ягоды годжи, сафлор, с ароматом "Соусеп") | D178: за 1 кг | E178: 1252 | F178: 1252 | G178: 0.25 | H178: 313 | K178: =IF(I178=#REF!,H178,H178*(1-$I$6)) -> 
A179: 50.89999998 | B179: 00061 | C179: Индийское Лето (Сенча, Бай Му Дань, брусника лист, Каркаде, шиповник кожура, яблоко, цукаты, роза лепестки, с ароматом "Тропический фрукт") | D179: за 1 кг | E179: 1441 | F179: 1441 | G179: 0.25 | H179: 360.25 | K179: =IF(I179=#REF!,H179,H179*(1-$I$6)) -> 
A180: 50.89999998 | B180: 00062 | C180: Ламбада (Сенча, банан, календула, с ароматом "Банан" ) | D180: за 1 кг | E180: 1306 | F180: 1176 | G180: 0.25 | H180: 294 | I180: Акция! | K180: =IF(I180=#REF!,H180,H180*(1-$I$6)) -> 
A181: 50.89999998 | B181: 00066 | C181: Релакс (Сенча, валерьян корень, лаванда, мальва, вишня лист, с ароматом "Жасмин") | D181: за 1 кг | E181: 1391 | F181: 1391 | G181: 0.25 | H181: =G181*F181 -> 347.75 | K181: =IF(I181=#REF!,H181,H181*(1-$I$6)) -> 
A182: 50.89999998 | B182: 00068 | C182: Японская липа (Сенча, лимон корка, липа, ромашка, календула, с ароматом "Апельсин") | D182: за 1 кг | E182: 1284 | F182: 1284 | G182: 0.25 | H182: 321 | K182: =IF(I182=#REF!,H182,H182*(1-$I$6)) -> 
A183: 50.89999998 | B183: 00705 | C183: Ванильное небо (Сенча, банан, брусника лист, жасмин, с ароматом "Сливки и Ваниль") | D183: за 1 кг | E183: 1349 | F183: 1349 | G183: 0.25 | H183: 337.25 | K183: =IF(I183=#REF!,H183,H183*(1-$I$6)) -> 
A184: 50.89999998 | B184: 00523 | C184: Абрикосовый джем (Сенча, персик, изюм, клюква, календула, с ароматом "Абрикос") | D184: за 1 кг | E184: 1349 | F184: 1349 | G184: 0.25 | H184: 337.25 | K184: =IF(I184=#REF!,H184,H184*(1-$I$6)) -> 
A185: 50.89999998 | B185: 00710 | C185: Пина-Колада зеленый (Сенча, кокос кубик, цукаты, жасмин, яблоко, с ароматом "Кокос и Ананас") | D185: за 1 кг | E185: 1372 | F185: 1372 | G185: 0.25 | H185: 343 | K185: =IF(I185=#REF!,H185,H185*(1-$I$6)) -> 
A186: 50.89999998 | B186: 00085 | C186: Зеленый Эрл грей (Ганпаудер, мальва, с ароматом "Бергамот") | D186: за 1 кг | E186: 1318 | F186: 1318 | G186: 0.25 | H186: 329.5 | K186: =IF(I186=#REF!,H186,H186*(1-$I$6)) -> 
A187: 50.89999998 | B187: 00083 | C187: Фруктовая карамель (Сенча, цукаты, яблоко, апельсин корка, малина ягода, гранат цветки, с ароматом "Фруктовое ассорти и Карамель") | D187: за 1 кг | E187: 1372 | F187: 1372 | G187: 0.25 | H187: 343 | K187: =IF(I187=#REF!,H187,H187*(1-$I$6)) -> 
A188: 50.89999998 | B188: 00093 | C188: Фруктовый вальс (Сенча, Ганпаудер, цукаты, мальва, календула, с ароматом "Фруктовое ассорти") | D188: за 1 кг | E188: 1372 | F188: 1235 | G188: 0.25 | H188: 308.75 | I188: Акция! | K188: =IF(I188=#REF!,H188,H188*(1-$I$6)) -> 
A189: 50.89999998 | B189: 00521 | C189: Таежный микс (Ганпаудер, черноплодная рябина ягода, шиповник кожура, ежевика лист, смородина лист, брусника лист, мальва, с ароматом "Лесные ягоды") | D189: за 1 кг | E189: 1285 | F189: 1285 | G189: 0.25 | H189: 321.25 | K189: =IF(I189=#REF!,H189,H189*(1-$I$6)) -> 
A190: 50.89999998 | B190: 00522 | C190: Ароматный манго (Ганпаудер, цукаты, календула, мальва, яблоко, с ароматом "Манго") | D190: за 1 кг | E190: 1301 | F190: 1301 | G190: 0.25 | H190: 325.25 | K190: =IF(I190=#REF!,H190,H190*(1-$I$6)) -> 
A191: 50.89999998 | B191: 00078 | C191: Зеленый чай "8-е марта" (Ганпаудер, Сенча, цукаты, роза лепестки, мальва, гранат цветки, с ароматом "Персик и Роза") | D191: за 1 кг | E191: 1454 | F191: 1454 | G191: 0.25 | H191: 363.5 | K191: =IF(I191=#REF!,H191,H191*(1-$I$6)) -> 
A192: 50.89999998 | B192: 00703 | C192: Гавайский (Сенча, цукаты, календула, с ароматом "Ананас") | D192: за 1 кг | E192: 1441 | F192: 1441 | G192: 0.25 | H192: 360.25 | K192: =IF(I192=#REF!,H192,H192*(1-$I$6)) -> 
A193: 50.89999998 | B193: 00092 | C193: Вишневый йогурт (Сенча, вишня лист, вишня ягода, роза лепестки, с ароматом "Йогурт и Вишня") | D193: за 1 кг | E193: 1474 | F193: 1474 | G193: 0.25 | H193: 368.5 | K193: =IF(I193=#REF!,H193,H193*(1-$I$6)) -> 
A194: 50.89999998 | B194: 00071 | C194: Мишки гамми зеленый (Сенча, цукаты, клюква ягода, малина ягода, клубника кусочки, мальва, с ароматом "Малина") | D194: за 1 кг | E194: 1450 | F194: 1450 | G194: 0.25 | H194: 362.5 | K194: =IF(I194=#REF!,H194,H194*(1-$I$6)) -> 
A195: 50.89999998 | B195: 00076 | C195: Зеленый чай Кокосовый (Сенча, кокос кубик, с ароматом "Кокос") | D195: за 1 кг | E195: 1432 | F195: 1432 | G195: 0.25 | H195: 358 | K195: =IF(I195=#REF!,H195,H195*(1-$I$6)) -> 
A196: 50.89999998 | B196: 00079 | C196: Зеленый чай "Свежий арбуз" (Ганпаудер, Сенча, цукаты, роза лепестки, яблоко, с ароматом "Арбуз") | D196: за 1 кг | E196: 1454 | F196: 1454 | G196: 0.25 | H196: 363.5 | K196: =IF(I196=#REF!,H196,H196*(1-$I$6)) -> 
A197: 50.89999998 | B197: 01071 | C197: Зеленый чай "Мохито БУМ" кат.В (Ганпаудер, Сенча, мята, лимон корка, сафлор, Лемонграсс, с ароматом "Лимон и Мята") | D197: за 1 кг | E197: 1056 | F197: 1056 | G197: 0.25 | H197: 264 | K197: =IF(I197=#REF!,H197,H197*(1-$I$6)) -> 
A198: 50.89999998 | B198: 00080 | C198: Зеленый чай "Мохито БУМ" (Ганпаудер, Сенча, мята, лимон корка, сафлор, Лемонграсс, с ароматом "Лимон и Мята") | D198: за 1 кг | E198: 1432 | F198: 1432 | G198: 0.25 | H198: 358 | K198: =IF(I198=#REF!,H198,H198*(1-$I$6)) -> 
A199: 50.89999998 | B199: 01072 | C199: Бенгальский Тигр кат.В (Сенча, Ганпаудер, цукаты, персик, календула, мальва, сафлор, брусника лист, с ароматом "Брусника") | D199: за 1 кг | E199: 1075 | F199: 1075 | G199: 0.25 | H199: 268.75 | K199: =IF(I199=#REF!,H199,H199*(1-$I$6)) -> 
A200: 50.89999998 | B200: 00082 | C200: Бенгальский Тигр (Сенча, Ганпаудер, цукаты, персик, календула, мальва, сафлор, брусника лист, с ароматом "Брусника") | D200: за 1 кг | E200: 1454 | F200: 1454 | G200: 0.25 | H200: 363.5 | K200: =IF(I200=#REF!,H200,H200*(1-$I$6)) -> 
A201: 50.89999998 | B201: 00081 | C201: Улыбка Гейши (Сенча, Ганпаудер, цукаты, сафлор, с ароматом "Персик и Клубника") | D201: за 1 кг | E201: 1177 | F201: 1177 | G201: 0.25 | H201: 294.25 | K201: =IF(I201=#REF!,H201,H201*(1-$I$6)) -> 
... 531 more rows

Sheet Лист1
A1: Черный чай AROMA | B1: kata
A2: Чёрный чай Eco-line | B2: katb
A3: Чёрные (Индия, Кения, Цейлон, Китай, Вьетнам) | B3: katc
A4: Зеленый чай AROMA | B4: katd
A5: Зелёный чай Eco-line | B5: kate
A6: Каркаде, Фруктовые чаи | B6: katf
A7: Ароматизированный чай на основе Ройбуша | B7: katg
A8: чай на основе Мате (МАТЭ) | B8: kath
A9: Связанный чай | B9: kati
A10: Гречишный,рисовый чаи | B10: katj
A11: Травяные чаи, завары, травы, ягоды | B11: katk
A12: Иван-чай | B12: katl
A13: Белый чай | B13: katm
A14: Улун | B14: katn
A15: Элитные улуны | B15: kato
A16: Пуэр прессованный | B16: katp
A17: Пуэр | B17: katq
A18: Ароматизированный чай на основе Пуэра | B18: katr
A19: Эксклюзивные чаи | B19: kats
A20: Кофе зерновой | B20: katt
A21: Кофе зерновой Aroma | B21: katu
A22: Тара, упаковки | B22: katv
A23: Добавки к чаю | B23: katw
A24: Ароматизатор пищевой натуральный 10 мл | B24: katx
A25: Фильтр пакеты | B25: katy
A26: Шоколад Плитка | B26: katz
A27: КРЕМ-МЕД | B27: kataa
A28: Варенье | B28: katab
A29: Чай в фильтр-пакетах для чайника | B29: katac
A30: Пакетированный чай в саше-конвертах для чашки | B30: katad
A31: Сиропы RICHEZA | B31: katae
A32: Джем "Русский лес" | B32: kataf
A33: ЛЕДЕНЦЫ И КАРАМЕЛЬ | B33: katg
B34: kat
